Cogmind - Beta 12 @@@ ROGUE MODE // 2023.11.11 @ 14:59:26 Player: Blaj Result: Destroyed by S-10 Pest with Light Assault Rifle Performance ------------- Evolutions (0) 0 Regions Visited (2) 400 Robots Destroyed (29) 145 Value Destroyed (485) 485 Prototype IDs (1) 20 Alien Tech Used (0) 0 Bonus (0) 0 TOTAL SCORE: 1050 Bonus ------- None Cogmind --------- Core Integrity 0/250 Matter 187/300 Energy 100/100 System Corruption 5% Temperature Cool (54) Movement Walking (400) Ox4 Location -10/Mines Parts ------- > --- POWER (1) -------- (None) > --- PROPULSION (2) --- Aluminum Leg > --- UTILITY (2) ------ High-capacity Storage Unit Hardened Light Armor Plating > --- WEAPON (2) ------- (None) > --- INVENTORY (20) --- Heavy Ion Engine Aluminum Leg Aluminum Leg Aluminum Leg Seismic Detector ECM Suite Hardened Light Armor Plating Hardened Light Armor Plating Hardened Light Armor Plating Hacking Suite Datajack Mining Laser Mining Claw Mining Claw Peak State ------------ > --- POWER ------------ Heavy Ion Engine > --- PROPULSION ------- Aluminum Leg Aluminum Leg > --- UTILITY ---------- High-capacity Storage Unit Hardened Light Armor Plating > --- WEAPON ----------- Rocket Launcher Rocket Launcher > --- INVENTORY -------- Heavy Ion Engine Aluminum Leg Aluminum Leg Aluminum Leg Seismic Detector ECM Suite Hardened Light Armor Plating Hardened Light Armor Plating Hardened Light Armor Plating Hacking Suite Datajack Mining Laser Mining Claw Mining Claw [Rating: 14] Favorites ----------- Power Light Ion Engine Engine Light Ion Engine Propulsion Aluminum Leg Leg Aluminum Leg Utility Seismic Detector Device Seismic Detector Storage Large Storage Unit Protection Hardened Light Armor Plating Weapon Mining Claw Energy Gun EM Pulse Gun Ballistic Gun Assault Rifle Launcher Grenade Launcher Slashing Weapon Mining Claw Build | -11 -10 -10 ------- Run | Jun Mat Min Slots Evolved . | . . . Power . | . . . Propulsion . | . . . Utility . | . . . Weapon . | . . . Parts Attached 20 | 1 16 3 Power 2 | . 2 . Engine 2 | . 2 . Core . | . . . Reactor . | . . . Propulsion 2 | . 2 . Treads . | . . . Leg 2 | . 2 . Wheel . | . . . Hover . | . . . Flight . | . . . Utility 7 | . 6 1 Device 4 | . 4 . Storage 2 | . 2 . Processor . | . . . Hackware . | . . . Protection 1 | . . 1 Artifact . | . . . Weapon 9 | 1 6 2 Energy Gun . | . . . Energy Cannon . | . . . Ballistic Gun 2 | 1 1 . Ballistic Cannon . | . . . Launcher 4 | . 2 2 Special Weapon . | . . . Impact Weapon . | . . . Slashing Weapon 3 | . 3 . Piercing Weapon . | . . . Special Melee Weapon . | . . . Unidentified Prototypes 1 | . 1 . Parts Lost 5 | . 1 4 Power 2 | . 1 1 Propulsion 1 | . . 1 Utility . | . . . Weapon 2 | . . 2 Highest Loss Streak 4 | . 1 4 To Critical Strikes . | . . . Average Slot Usage (%) 95 | . 95 100 Engine 14 | . 14 14 Leg 27 | . 27 28 Device 9 | . 9 10 Storage 14 | . 14 14 Energy Gun 1 | . 1 . Ballistic Gun 4 | . 4 . Slashing Weapon 22 | . 22 24 Naked Turns . | . . . Heaviest Build 53 | 12 53 53 Greatest Support 20 | 20 20 20 Greatest Overweight (x) 2 | . 2 2 Average Overweight (x) . | . . 2 Largest Inventory Capacity 20 | 8 20 20 Average Capacity 14 | 8 15 20 Most Carried 15 | 6 15 14 Average Carried 11 | 5 11 14 Final Capacity 20 | 8 20 20 Final Carried 14 | 6 14 14 Class Distribution -------------------- 100% | Mutant Dominant Class ---------------- Mutant | -10/Materials Mutant | -10/Mines Resources | -11 -10 -10 ----------- Run | Jun Mat Min Matter Collected 465 | 214 251 . Remotely . | . . . Salvage Created 698 | 172 495 31 Parts 67 | 16 45 6 Haulers Intercepted . | . . . Recyclers Shooed . | . . . Parts Field Recycled . | . . . Retrieved Matter . | . . . Parts Self-Destructed . | . . . Prevented . | . . . Kills | -11 -10 -10 ------- Run | Jun Mat Min Combat Hostiles Destroyed 15 | . 14 1 Melee 8 | . 8 . AOE 7 | . 6 1 Classes Destroyed 8 | 2 3 3 Worker 2 | . . 2 Builder 1 | . . 1 Tunneler 7 | 5 2 . Recycler 2 | 1 1 . Operator 2 | . 2 . Swarmer 6 | . 6 . Grunt 8 | . 8 . Demolisher 1 | . . 1 Best Kill Streak 4 | 4 4 4 Combat Bots Only 3 | . 3 1 Max Kills in Single Turn 3 | 1 2 3 Gunslinging . | . . . Exploded 2 | . 2 1 Melee 1 | . 1 . Uniques/NPCs Destroyed . | . . . Combat | -11 -10 -10 -------- Run | Jun Mat Min Damage Taken 1218 | . 453 765 Core 252 | . 103 149 Absorbed by Shields . | . . . Regen/Repaired (Parts) 84 | . 84 . Core Remaining (%) 100 | 100 . . Volleys Fired 29 | 13 11 5 Largest 2 | 2 2 2 Hottest 66 | 60 60 66 Shots Fired 50 | 26 16 8 Gun 36 | 26 10 . Cannon . | . . . Launcher 14 | . 6 8 Special . | . . . Kinetic 18 | 13 5 . Thermal . | . . . Explosive 14 | . 6 8 Electromagnetic 18 | 13 5 . Robot Hit Streak 5 | 5 5 3 Robot Miss Streak 3 | 2 3 1 Penetration Max . | . . . Secondary Targets . | . . . Shots Hit Robots 56 | 14 36 6 Core Hits 43 | 9 18 16 Critical Kills . | . . . Critical Parts Destroyed . | . . . Critical Strikes . | . . . Melee Attacks 58 | . 58 . Impact . | . . . Slashing 58 | . 58 . Piercing . | . . . Sneak Attacks 7 | . 7 . Combat Hostiles . | . . . Follow-up Attacks 2 | . 2 . Damage Inflicted 1870 | 205 1406 259 Guns 242 | 173 69 . Cannons . | . . . Explosions 703 | 32 412 259 Melee 925 | . 925 . Ramming . | . . . Kinetic 91 | 50 41 . Thermal 32 | 32 . . Explosive 671 | . 412 259 Electromagnetic 151 | 123 28 . Impact . | . . . Slashing 925 | . 925 . Piercing . | . . . Highest Corruption 5 | . 5 5 Average Corruption 2 | . 1 5 Corruption Purged . | . . . Corruption Blocked . | . . . Effects 7 | . 4 3 Matter Fused 2 | . 2 . Heat Flow Errors 1 | . 1 . Data Loss (minor) 3 | . 1 2 Alerts 1 | . . 1 Overload Shots . | . . . Overflow Damage 64 | . 64 . Projectiles . | . . . Explosions 12 | . 12 . Melee 52 | . 52 . Knockbacks . | . . . Impact . | . . . Kinetic . | . . . Secondary . | . . . Self-Inflicted Damage 27 | . 27 . Shots 1 | . 1 . Rammed . | . . . Targets Rammed . | . . . Kicked . | . . . Crushed . | . . . Highest Temperature 109 | 40 109 66 Average Temperature 35 | 23 54 44 Received Heat Transfer 174 | . 174 . Siege Activations . | . . . Robots Corrupted . | . . . Combat Hostiles . | . . . Parts Fried 1 | 1 . . Impact Corruptions . | . . . Robots Melted . | . . . Combat Hostiles . | . . . Parts Melted . | . . . Heat Transferred 100 | 100 . . Parts Sabotaged . | . . . Parts Stolen . | . . . Parts Stripped . | . . . Power Chain Reactions 1 | 1 . . Missiles Intercepted . | . . . Alert | -11 -10 -10 ------- Run | Jun Mat Min Peak Influence 264 | 30 264 45 Initial 19 | . 19 12 Average 88 | 10 96 14 Maximum Alert Level 1 | . 1 . Low Security (%) 87 | 100 86 100 Level 1 12 | . 13 . Level 2 . | . . . Level 3 . | . . . Level 4 . | . . . Level 5 . | . . . High Security . | . . . Max Security . | . . . Squads Dispatched 2 | . 2 . Investigation . | . . . Extermination . | . . . Reinforcement 2 | . 2 . Assault . | . . . Garrison . | . . . Intercept . | . . . Searches Triggered . | . . . Construction Impeded . | . . . Haulers Reinforced . | . . . Active Scanning Responses . | . . . Cargo Convoy Interrupts . | . . . Stealth | -11 -10 -10 --------- Run | Jun Mat Min Distress Signals 2 | . 2 . Communications Jammed . | . . . Distress Signals . | . . . Times Spotted 36 | . 31 5 Peak Tracking Total 5 | . 4 5 Tactical Retreats 3 | . 3 . Traps | -11 -10 -10 ------- Run | Jun Mat Min Traps Triggered 5 | . 5 . Indirectly . | . . . Trap Hack Attempts . | . . . Triggered . | . . . Disarmed . | . . . Reprogrammed . | . . . Reused . | . . . Traps Extracted . | . . . Installed . | . . . Triggered . | . . . Machines | -11 -10 -10 ---------- Run | Jun Mat Min Machines Disabled 2 | . 2 . Max in Single Turn 1 | . 1 . Machines Repaired . | . . . Machines Sabotaged . | . . . Overloaded Fab Kills . | . . . Hacking | -11 -10 -10 --------- Run | Jun Mat Min Machines Accessed 7 | . 7 . Terminals 6 | . 6 . Fabricators . | . . . Repair Stations 1 | . 1 . Recycling Units . | . . . Scanalyzers . | . . . Garrison Access . | . . . Total Hacks 31 | . 31 . Successful 15 | . 15 . Failed 16 | . 16 . Catastrophic 3 | . 3 . Database Lockouts . | . . . Manual 26 | . 26 . Terminals 29 | . 29 . Fabricators . | . . . Repair Stations 2 | . 2 . Recycling Units . | . . . Scanalyzers . | . . . Garrison Access . | . . . Terminal Hacks 10 | . 10 . Record 1 | . 1 . Part Schematic 1 | . 1 . Robot Analysis 5 | . 5 . Terminal Index 1 | . 1 . Unreport Threat 1 | . 1 . Hauler Manifests 1 | . 1 . Fabricator Hacks . | . . . Repair Station Hacks 2 | . 2 . Scan Component 1 | . 1 . Repair 1 | . 1 . Recycling Unit Hacks . | . . . Scanalyzer . | . . . Garrison Access Hacks . | . . . Unauthorized Hacks 3 | . 3 . Terminals 3 | . 3 . Botnet 3 | . 3 . Fabricators . | . . . Repair Stations . | . . . Recycling Units . | . . . Scanalyzers . | . . . Garrison Access . | . . . Data Cores Recovered . | . . . Used . | . . . Hacking Detections 6 | . 6 . Full Trace Events 1 | . 1 . Feedback Events . | . . . Feedback Blocked . | . . . Robot Schematics Acquired . | . . . Robots Built . | . . . Authchips . | . . . Time . | . . . Total Robot Build Rating . | . . . Part Schematics Acquired 1 | . 1 . Parts Built . | . . . Authchips . | . . . Time . | . . . Total Part Build Rating . | . . . Parts Repaired 1 | . 1 . Time 26 | . 26 . Parts Recycled . | . . . Recycled Matter . | . . . Retrieved Matter . | . . . Retrieved Components . | . . . Parts Scanalyzed . | . . . Part Schematics Acquired . | . . . Parts Damaged . | . . . Bothacking | -11 -10 -10 ------------ Run | Jun Mat Min Used RIF Installer . | . . . Robots Hacked . | . . . Non-combat . | . . . Combat . | . . . Robot Hacks Applied . | . . . Relay Couplers Released . | . . . Fabnet Peak Effective % . | . . . Robots Rewired . | . . . Allies Hacked . | . . . Hacks Repelled . | . . . Allies | -11 -10 -10 -------- Run | Jun Mat Min Total Allies . | . . . Largest Group . | . . . Highest-Rated Group . | . . . Highest-Rated Ally . | . . . Total Orders . | . . . Ally Attacks . | . . . Total Damage . | . . . Kills . | . . . Allies Corrupted . | . . . Allies Melted . | . . . Intel | -11 -10 -10 ------- Run | Jun Mat Min Robot Analysis Total 5 | . 5 . Derelict Logs Recovered 1 | . . 1 Drone Launches . | . . . Drone Recoveries . | . . . Exploration | -11 -10 -10 ------------- Run | Jun Mat Min Turns Passed 1855 | 78 1687 90 Spaces Moved 822 | 32 762 28 Core . | . . . Treads . | . . . Legs 822 | 32 762 28 Wheels . | . . . Hover . | . . . Flight . | . . . Fastest Speed 120 | 120 120 260 Average Speed 183 | 120 182 260 Slowest Speed 260 | 120 260 260 Overloaded Moves . | . . . Propulsion Burnouts . | . . . Robots Hopped . | . . . Cave-ins Triggered . | . . . Exploration Rate (%) 38 | 3 96 16 Regions Visited 2 Branch Regions 1 Pre-discovered Areas . | . . . Known Exits Taken . | . . . Unknown Exits Taken 2 | 1 1 . Scrap Searched . | . . . Spaces Dug 43 | . 43 . Terrain Destroyed 76 | . 48 28 Melee 5 | . 5 . Projectile . | . . . AOE 71 | . 43 28 Terrain Rammed . | . . . Walls Destroyed . | . . . Machines Disabled . | . . . Actions | -11 -10 -10 --------- Run | Jun Mat Min Total 1021 | 48 937 36 Wait 58 | . 58 . Move 820 | 31 761 28 Hop . | . . . Pick Up 21 | 1 20 . Fast Attach 3 | . 3 . Attach 5 | 1 4 . Detach 5 | 1 4 . Swap 12 | . 9 3 Drop 16 | 1 15 . Fire 29 | 13 11 5 Melee 52 | . 52 . Ram . | . . . Kick . | . . . Crush . | . . . Escape Stasis . | . . . Rewire . | . . . Trap . | . . . Miscellaneous . | . . . Route ------- -11/Junkyard -10/Materials (discovered 5 exits: [*Mat x3] / [*Min x2]) -10/Mines (discovered 1 exit: [*Mat]) History --------- Turn | Location | Event 1 | -11/Junkyard | Discovered new exit (range 2) 79 | -11/Junkyard | Entered Materials 127 | -10/Materials | Discovered new exit (range 14) 303 | -10/Materials | Build established: Mutant 359 | -10/Materials | Discovered new exit (range 8) 669 | -10/Materials | Discovered new exit (range 8) 881 | -10/Materials | Repaired Aluminum Leg 1040 | -10/Materials | Discovered new exit (range 10) 1634 | -10/Materials | Discovered new exit (range 9) 1766 | -10/Materials | Entered Mines 1798 | -10/Mines | Learned Materials garrison access intel 1830 | -10/Mines | Assembled infested the area 1843 | -10/Mines | Core integrity fell below 50% 1845 | -10/Mines | Core integrity fell below 20% 1850 | -10/Mines | Discovered new exit (range 13) 1856 | -10/Mines | Destroyed by S-10 Pest with Light Assault Rifle Last Messages --------------- 01838_ C-30 ARC bursts open, deploying its payload. 01838_ D-53 Grenadier unfolds itself. 01839_ K-01 Serf collects debris. 01843_ U-05 Engineer destroyed. 01844_ K-01 Serf destroyed. 01846_ The unstable cave ceiling collapses. 01850_ EXIT=FOUND 01851_ The unstable cave ceiling collapses. 01851_ U-05 Engineer builds a Wall. 01851_ U-05 Engineer lays Concrete. 01852_ Hvy. Ion Engine destroyed. 01852_ Rocket Launcher destroyed. 01852_ U-05 Engineer lays Concrete. 01855_ The unstable cave ceiling collapses. 01855_ U-05 Engineer lays Concrete. 01855_ D-53 Grenadier destroyed. 01855_ U-05 Engineer destroyed. 01855_ K-01 Serf destroyed. 01855_ Rocket Launcher destroyed. 01856_ Aluminum Leg destroyed. Map ----- +----------------------------------------------------+ | ??????????????????????????????????????????? | | ??????????????????????????????????????????? | | ??????????????????????????????????????????? | | ??????????????????????????????????????????? | | ??????????????????????????????????????????? | | ??????????????????????????????????????????? | | ??????????????????????????????????????????? | | ??????????????????????????????????????????? | | ??????????????????????????????????????????? | | ??????????????????????????????????????????? | | ??????????????????????????????????????????? | | ??????????????????????????????????????????? | | ??????????????????????????????????????????? | | ??????????????????????????????????????????? | | ??????????????????????????????????????????? | | ??????????????????????????????????????????? | | ??????????????????????????????????????????? | | ??????????????????????????????????????????? | | ??????????????????????????????????????????? | | ??????????????????????????????????????????? | | ???????????????#######????????????????????? | | ??????????????## ###??????????????????? | | ?????????????## #??????????????????? | | ?????????????# #####??????????????? | | ?????????????# ##??????????????? | | ???#?????????# @ ##?????????????? | | ???? ?? ! #?????????????? | | ???# s % #????????????? | | ????## ### ?????????? | | ?????# #### = d ?????????? | | ?????# s=% ??????????? | | ?????# s ### ??????????? | | ?????#### ##??????????????? | | ????????# # #???????????????? | | ????????# ## ! #???????????????? | | ????????# ##### % ##???????????????? | | ????????# ## = ##????????????????? | | ????????##### ##### #?????????????????? | | ????????????# ###### #?????????????????? | | ???????????## #?????????????????? | | ???????????# ##?????????????????? | | ???????##?## ######??????????????????? | | ??????## ## """ #???????????????????????? | | ??????# """ ##??????????????????????? | | ??????# """ #??????????????????????? | | ??????## #?????????????????????? | | ???????## ######?????????????????????? | | ????????# ##??????????????????????????? | | ????????## ##???????????????????????????? | | ?????????#####????????????????????????????? | +----------------------------------------------------+ Best States ------------- Heat Dissipation 25 Energy Generation 14 Energy Capacity 280 Matter Stores 300 Matter Capacity 300 Sight Range 16 Terrain Scan Density 10 Armor Coverage 150 Evasion (%) 55 Item Schematics ----------------- Hcp. Storage Unit | -10/Materials | Hacked Robot Schematics ------------------ None Fabricated ------------ Nothing Alien Tech Used ----------------- None Achievements -------------- None Challenges ------------ None Game ------ Seed FireMomentumMediator Manual? 0 Play Time 00:14:47 Cumulative 81.7 hours Start 2023.11.11 @ 14:44:54 End 2023.11.11 @ 14:59:26 Sessions 1 Manual Loads 0 Difficulty Rogue Special Mode None Game No. 25 Rogue 25 Adventurer 0 Explorer 0 Win Type - Total 4 Types 3/0/1/0/0/0/0/0/0 Lore% 53 Gallery% 63 Achievement% 57 Wizard Run 0 Options --------- ASCII 0 Keyboard 1 Movement Numpad Keybinds 0 Fullscreen 1 Font 12/Terminus Map View 83x54 Tactical HUD 1 Map Filters NONE Filters NONE Steam 0 RUN: c401cd3e-22e4-41ca-9c74-6947d261ddfc